[Event "EYCC Open-U12 2019"]
[Site "Bratislava"]
[Date "2019.08.10"]
[Round "9.53"]
[White "Licka, Denis"]
[Black "Isaksson, Max"]
[Result "1-0"]
[ECO "C77"]
[WhiteElo "1523"]
[BlackElo "1695"]
[Annotator "NA RC"]
[PlyCount "113"]
[EventDate "2019.08.02"]
[EventType "swiss"]
[EventCountry "SVK"]
[SourceTitle "playchess.com"]
[Source "ChessBase"]
[SourceQuality "1"]
[TimeControl "40/5400+30:1800+30"]

1. e4 {[%emt 0:00:00]} e5 {[%emt 0:00:00]} 2. Nf3 {[%emt 0:00:00]} Nc6 {[%emt 0:00:00]} 3. Bb5 {[%emt 0:00:00]} a6 {[%emt 0:00:00]} 4. Ba4 {[%emt 0:00:00]} Nf6 {[%emt 0:00:00]} 5. d3 {[%emt 0:00:00]} Bc5 {[%emt 0:04:57]} 6. c3 {[%emt 0:00:00]} d6 {[%emt 0:00:31]} 7. O-O {[%emt 0:00:14]} Bg4 {[%emt 0:02:03]} 8. Nbd2 {[%emt 0:00:31]} O-O {[%emt 0:00:41]} 9. Re1 {[%emt 0:00:09]} b5 {[%emt 0:01:59]} 10. Bb3 {[%emt 0:00:05]} Re8 {[%emt 0:08:20]} 11. h3 {[%emt 0:02:04]} Bh5 {[%emt 0:00:35]} 12. Nf1 {[%emt 0:00:07]} h6 {[%emt 0:01:49]} 13. Ng3 {[%emt 0:00:10]} Bg6 {[%emt 0:07:15]} 14. Nh4 {[%emt 0:03:29]} Ne7 {[%emt 0:05:47]} 15. Nxg6 {[%emt 0:02:32]} Nxg6 {[%emt 0:00:27]} 16. Nf5 {[%emt 0:00:41]} Ne7 {[%emt 0:02:22]} 17. Qf3 {[%emt 0:01:09]} Nxf5 {[%emt 0:06:51]} 18. Qxf5 {[%emt 0:01:21]} Qd7 {[%emt 0:05:44]} 19. Qxd7 {[%emt 0:01:07]} Nxd7 {[%emt 0:01:36]} 20. Bd5 {[%emt 0:00:14]} Rab8 {[%emt 0:01:15]} 21. b4 {[%emt 0:14:51]} Bb6 {[%emt 0:06:01]} 22. Bc6 {[%emt 0:02:32]} Rbd8 {[%emt 0:08:56]} 23. a4 {[%emt 0:02:05]} bxa4 {[%emt 0:04:14]} 24. Rxa4 {[%emt 0:00:15]} Rf8 {[%emt 0:03:08]} 25. Bxd7 {[%emt 0:00:21]} Rxd7 {[%emt 0:00:05]} 26. Rxa6 {[%emt 0:00:09]} Rdd8 {[%emt 0:00:00]} 27. Be3 {[%emt 0:00:34]} Bxe3 28. fxe3 {[%emt 0:00:24]} Rfe8 {[%emt 0:01:44]} 29. Ra7 {[%emt 0:00:40]} Rd7 {[%emt 0:00:06]} 30. Rea1 {[%emt 0:00:07]} Kf8 {[%emt 0:00:27]} 31. Ra8 {[%emt 0:01:33]} Rxa8 {[%emt 0:00:59]} 32. Rxa8+ {[%emt 0:00:06]} Ke7 {[%emt 0:00:03]} 33. Kf2 {[%emt 0:01:32]} Ke6 {[%emt 0:01:14]} 34. Re8+ {[%emt 0:01:03]} Kf6 {[%emt 0:00:07]} 35. Rc8 {[%emt 0:00:12]} Ke6 {[%emt 0:00:07]} 36. Ke2 {[%emt 0:00:11]} Re7 {[%emt 0:00:43]} 37. Kd2 {[%emt 0:00:15]} Kd7 {[%emt 0:00:02]} 38. Rg8 {[%emt 0:01:07]} g6 {[%emt 0:00:09]} 39. g4 {[%emt 0:00:43]} Re6 {[%emt 0:00:31]} 40. h4 {[%emt 0:00:00]} Re8 {[%emt 0:00:00]} 41. Rxe8 {[%emt 0:06:58]} Kxe8 {[%emt 0:08:37]} 42. Kc2 {[%emt 0:00:19]} Ke7 {[%emt 0:00:05]} 43. Kb3 {[%emt 0:00:19]} Ke6 {[%emt 0:00:10]} 44. Ka4 {[%emt 0:01:43]} f5 {[%emt 0:00:34]} 45. exf5+ {[%emt 0:01:32]} gxf5 {[%emt 0:00:07]} 46. gxf5+ {[%emt 0:00:07]} Kxf5 {[%emt 0:00:23]} 47. Kb5 {[%emt 0:00:09]} Kg4 {[%emt 0:00:31]} 48. Kc6 {[%emt 0:00:09]} Kxh4 {[%emt 0:00:13]} 49. Kxc7 {[%emt 0:00:09]} Kg3 {[%emt 0:00:10]} 50. b5 {[%emt 0:00:11]} Kf3 {[%emt 0:00:51]} 51. b6 {[%emt 0:00:12]} Kxe3 {[%emt 0:00:04]} 52. b7 {[%emt 0:00:07]} Kxd3 {[%emt 0:00:15]} 53. Kxd6 {[%emt 0:01:40]} e4 {[%emt 0:00:05]} 54. b8=Q {[%emt 0:00:10]} Kxc3 {[%emt 0:00:05]} 55. Qb1 {[%emt 0:00:56]} e3 {[%emt 0:00:10]} 56. Qe1+ {[%emt 0:00:06]} Kd3 {[%emt 0:00:04]} 57. Ke5 {[%emt 0:00:11]} 1-0

[Event "EYCC Open-U12 2019"]
[Site "Bratislava"]
[Date "2019.08.10"]
[Round "9.54"]
[White "Musaev, Matej Elbek"]
[Black "Grishin, Petr E."]
[Result "1/2-1/2"]
[ECO "B10"]
[WhiteElo "1693"]
[BlackElo "1506"]
[Annotator "NA RC"]
[PlyCount "125"]
[EventDate "2019.08.02"]
[EventType "swiss"]
[EventCountry "SVK"]
[SourceTitle "playchess.com"]
[Source "ChessBase"]
[SourceQuality "1"]
[TimeControl "40/5400+30:1800+30"]

1. e4 c6 2. Nf3 d5 3. Nc3 Nf6 4. e5 Ne4 5. d4 Nxc3 6. bxc3 Bf5 7. Bd3 Bxd3 8. Qxd3 e6 9. O-O Be7 10. Be3 O-O 11. Rab1 b6 12. Nd2 c5 13. f4 cxd4 14. cxd4 Nc6 15. c3 Rc8 16. Rf3 f5 17. exf6 Bxf6 18. Rh3 g6 19. Nf3 Qc7 20. Bd2 Na5 21. Ne5 Nc4 22. Bc1 Bg7 23. Rb3 a5 24. Qe2 Nd6 25. Qg4 Rfe8 26. Qh4 Bxe5 27. fxe5 Nf5 28. Qg4 Qc4 29. Bg5 b5 30. Bf6 Rc7 31. Qd1 b4 32. g4 Ne7 33. Qd2 Nc6 34. Rg3 Ra7 35. cxb4 Qxd4+ 36. Qxd4 Nxd4 37. Rb2 axb4 38. Rd3 Nc6 39. h4 Rea8 40. Rdd2 Ra4 41. Rg2 Nd4 42. h5 g5 43. Rgf2 h6 44. Be7 Nc6 45. Bd6 Kg7 46. Rfc2 R8a6 47. Kf2 d4 48. Kf1 d3 49. Rc4 Rxa2 50. Rxa2 Rxa2 51. Ke1 b3 52. Rxc6 b2 53. Rc7+ Kg8 54. Rc8+ Kf7 55. Rc7+ Ke8 56. Rc8+ Kd7 57. Rc7+ Kd8 58. Rb7 Ra1+ 59. Kd2 b1=Q 60. Rxb1 Rxb1 61. Bf8 Rb5 62. Bxh6 Ke8 63. Bxg5 1/2-1/2